fUST/lending_fUST_20240128
["ID","MTS","AMOUNT","RATE_DAILY","PERIOD"]
[312871981,1706385038879,-1247.3282126,0.00013653,2]
[312871983,1706385038888,-1252.28433872,0.00013656,2]
[312871985,1706385038897,-273.74363471,0.00013656,2]
[312871987,1706385038906,-286.91730726,0.0001369,2]
[312871989,1706385038915,-200.0,0.00014312,2]
[312871991,1706385038925,-2710.54181066,0.00015,2]
[312871994,1706385038935,-548.30356127,0.00015,2]
[312871996,1706385038944,-280.0,0.00015743,2]
[312871998,1706385038953,-272.79145972,0.000165,2]
[312871999,1706385038963,-391.0,0.00017318,2]
[312872002,1706385038972,-2105.3133158,0.00017988,2]
[312872003,1706385038981,-155.20715797,0.00017989,2]
[312872005,1706385038991,-1583.7528565,0.00019,2]
[312872007,1706385039000,-280.0,0.00019049,2]
[312872009,1706385039009,-167.068647,0.00019178,2]
[312872011,1706385039018,-155.75566436,0.00019888,2]
[312872013,1706385039028,-18977.33222903,0.00019998,2]
[312872015,1706385039037,-155.10075661,0.0002,2]
[312872017,1706385039046,-679.3029243,0.0002,2]
[312872019,1706385039056,-155.01860223,0.0002,2]
[312872021,1706385039065,-155.01860223,0.0002,2]
[312872023,1706385039074,-2009.31889645,0.0002,2]
[312872025,1706385039083,-155.01860223,0.0002,2]
[312872027,1706385039093,-1199.09633829,0.0002,2]
[312872029,1706385039102,-200.0,0.0002,2]
[312872031,1706385039111,-168.99927393,0.0002,2]
[312872033,1706385039120,-244.16390159,0.0002,2]
[312872035,1706385039130,-259.07239837,0.0002,2]
[312872037,1706385039139,-156.28562946,0.0002,2]
[312872039,1706385039148,-1827.38712364,0.00021,2]
[312872041,1706385039157,-903.29302173,0.000219,2]
[312872043,1706385039166,-283.65055231,0.00021912,2]
[312872045,1706385039174,-194.68732422,0.00021912,2]
[312872047,1706385039184,-157.61504376,0.00021914,2]
[312872049,1706385039193,-309.73348156,0.00021914,2]
[312872051,1706385039202,-294.81882163,0.00021914,2]
[312872053,1706385039212,-996.06517026,0.00021914,2]
[312872055,1706385039222,-450.58581133,0.00021915,2]
[312872057,1706385039231,-263.50469013,0.00021915,2]
[312872060,1706385039240,-164.91737663,0.00021915,2]
[312872062,1706385039252,-1266.71428173,0.00021915,2]
[312872064,1706385039263,-500.0,0.00021917,2]
[312872066,1706385039271,-500.0,0.00021917,2]
[312872068,1706385039280,-500.0,0.00021917,2]
[312872070,1706385039289,-500.0,0.00021917,2]
[312872072,1706385039298,-500.0,0.00021917,2]
[312872074,1706385039307,-500.0,0.00021917,2]
[312872076,1706385039316,-619.87643609,0.00021917,2]
[312872078,1706385039325,-166.666666,0.00021918,2]
[312872080,1706385039335,-300.0,0.00021995,2]
[312872082,1706385039343,-2086.25337306,0.00021995,2]
[312872084,1706385039352,-63037.67864223,0.00021995,2]
[312872086,1706385039361,-426.38170713,0.00022,2]
[312872087,1706385039370,-2036.12411825,0.00022,2]
[312872089,1706385039379,-327.61566675,0.00022,2]
[312872091,1706385039388,-3971.98419525,0.00022,2]
[312872093,1706385039397,-293.70793193,0.00022,4]
[312872095,1706385039407,-164.09330822,0.00022,2]
[312872098,1706385039416,-155.75566433,0.00022366,2]
[312872100,1706385039425,-166.666666,0.00022431,2]
[312872102,1706385039435,-166.666666,0.00022944,2]
[312872104,1706385039445,-1416.67721386,0.00023,2]
[312872106,1706385039454,-9947.92180076,0.00023,2]
[312872108,1706385039462,-166.666666,0.00023456,2]
[312872110,1706385039471,-151.53182002,0.00023485,2]
[312872112,1706385039480,-166.666666,0.00023969,2]
[312872113,1706385039488,-4017.99473219,0.00024,2]
[312872115,1706385039498,-166.666666,0.00024482,2]
[312872117,1706385039507,-380.0,0.00024658,2]
[312872119,1706385039516,-155.75566433,0.00024844,2]
[312872121,1706385039525,-498.88477678,0.0002496,5]
[312872124,1706385039536,-7649.9786433,0.00025,2]
[312872126,1706385039546,-851.06760342,0.00025,2]
[312872128,1706385039555,-4727.98807036,0.00025,2]
[312872130,1706385039564,-1958.72935728,0.00025,2]
[312872132,1706385039574,-155.01860223,0.00025,2]
[312872134,1706385039585,-680.67452781,0.00025,2]
[312872136,1706385039595,-260.27250039,0.00025,2]
[312872138,1706385039605,-151.53182002,0.0002506,2]
[312872140,1706385039614,-194.9590979,0.00025479,2]
[312872142,1706385039624,-290.6944281,0.00027,2]
[312872143,1706385039633,-874.90517919,0.0002728,2]
[312872146,1706385039642,-155.75566433,0.00027322,2]
[312872148,1706385039652,-377.073033,0.00027397,2]
[312872149,1706385039661,-377.073033,0.00027397,2]
[312872151,1706385039671,-151.0,0.00027397,2]
[312872153,1706385039680,-155.0,0.00027397,2]
[312872156,1706385039689,-17048.26,0.00027397,3]
[312872158,1706385039698,-32509.89,0.00027397,3]
[312872159,1706385039707,-27091.57,0.00027397,3]
[312872162,1706385039717,-200.93387921,0.000279,2]
[312872164,1706385039726,-200.93387921,0.000279,2]
[312872165,1706385039735,-527.9607821,0.00027999,2]
[312872168,1706385039744,-385.72665281,0.00028,2]
[312872169,1706385039754,-239.76670397,0.00028,2]
[312872172,1706385039763,-556.2457431,0.00028,2]
[312872174,1706385039772,-159.42971699,0.0002828,2]
[312872175,1706385039781,-153.0,0.00028493,2]
[312872178,1706385039791,-153.0,0.00028493,2]
[312872180,1706385039800,-200.1857445,0.00028493,2]
[312872182,1706385039810,-199.4415769,0.00028493,2]
[312872184,1706385039819,-153.0,0.00028493,2]
[312872185,1706385039827,-199.4415769,0.00028493,2]
[312872187,1706385039836,-632.74525896,0.00028644,2]
[312872190,1706385039846,-155.0,0.00028767,2]
[312872191,1706385039855,-1933.42796518,0.00029,2]
[312872193,1706385039864,-1000.0,0.00029,2]
[312872195,1706385039873,-9132.4701419,0.00029,4]
[312872197,1706385039882,-310.03720446,0.00029,2]
[312872199,1706385039891,-309.87175152,0.00029,2]
[312872202,1706385039900,-153.0,0.00029315,2]
[312872203,1706385039910,-170.3168459,0.00029315,2]
[312872206,1706385039919,-306.0,0.00029315,2]
[312872208,1706385039929,-154.4105762,0.00029315,2]
[312872210,1706385039938,-199.4415769,0.00029315,2]
[312872212,1706385039949,-199.4415769,0.00029315,2]
[312872214,1706385039958,-153.0,0.00029315,2]
[312872216,1706385039968,-199.4415769,0.00029315,2]
[312872218,1706385039977,-153.0,0.00029315,2]
[312872220,1706385039986,-199.4415769,0.00029315,2]
[312872222,1706385039995,-199.4415769,0.00029315,2]
[312872224,1706385040004,-199.4415769,0.00029315,2]
[312872226,1706385040014,-153.0,0.00029315,2]
[312872228,1706385040022,-8095.26081244,0.000298,3]
[312872230,1706385040031,-155.75566433,0.000298,2]
[312872232,1706385040040,-6615.424393,0.000298,2]
[312872234,1706385040050,-6615.424393,0.000298,2]
[312872236,1706385040059,-151.0,0.000298,2]
[312872238,1706385040068,-500.0,0.00029899,2]
[312872240,1706385040076,-500.0,0.00029899,2]
[312872242,1706385040085,-500.0,0.00029899,2]
[312872244,1706385040096,-500.00000001,0.00029899,2]
[312872246,1706385040104,-500.0,0.00029899,2]
[312872248,1706385040114,-190.40084948,0.00029899,2]
[312872250,1706385040123,-500.0,0.00029899,2]
[312872252,1706385040132,-500.0,0.00029899,2]
[312872254,1706385040141,-500.0,0.00029899,2]
[312872256,1706385040150,-500.0,0.00029899,2]
[312872258,1706385040159,-500.0,0.00029899,2]
[312872259,1706385040168,-500.0,0.00029899,2]
[312872261,1706385040177,-500.0,0.00029899,2]
[312872263,1706385040186,-500.0,0.00029899,2]
[312872265,1706385040196,-500.0,0.00029899,2]
[312872267,1706385040205,-500.0,0.00029899,2]
[312872269,1706385040214,-500.0,0.00029899,2]
[312872271,1706385040223,-500.0,0.00029899,2]
[312872273,1706385040232,-500.0,0.00029899,2]
[312872275,1706385040242,-500.0,0.00029899,2]
[312872277,1706385040251,-500.0,0.00029899,2]
[312872279,1706385040260,-500.0,0.00029899,2]
[312872281,1706385040269,-500.0,0.00029899,2]
[312872283,1706385040278,-500.0,0.00029899,2]
[312872286,1706385040288,-500.0,0.00029899,2]
[312872287,1706385040297,-500.0,0.00029899,2]
[312872289,1706385040306,-412.2024981,0.00029899,2]
[312872292,1706385040315,-500.0,0.00029899,2]
[312872294,1706385040324,-379.02178062,0.00029899,2]
[312872303,1706385040401,-500.0,0.00029899,2]
[312872305,1706385040411,-500.0,0.00029899,2]
[312872307,1706385040419,-207.74651376,0.00029899,2]
[312872309,1706385040428,-500.0,0.00029899,2]
[312872311,1706385040437,-500.0,0.00029899,2]
[312872313,1706385040446,-500.0,0.00029899,2]
[312872315,1706385040455,-500.0,0.00029899,2]
[312872317,1706385040463,-500.0,0.00029899,2]
[312872319,1706385040472,-488.542,0.00029899,2]
[312872321,1706385040481,-500.0,0.00029899,2]
[312872323,1706385040490,-500.0,0.00029899,2]
[312872325,1706385040499,-500.0,0.00029899,2]
[312872327,1706385040507,-500.0,0.00029899,2]
[312872329,1706385040517,-500.0,0.00029899,2]
[312872331,1706385040526,-500.0,0.00029899,2]
[312872333,1706385040535,-500.0,0.00029899,2]
[312872335,1706385040545,-500.0,0.00029899,2]
[312872337,1706385040554,-196.46763306,0.00029899,2]
[312872339,1706385040563,-500.0,0.00029899,2]
[312872341,1706385040574,-500.0,0.00029899,2]
[312872343,1706385040586,-500.0,0.00029899,2]
[312872345,1706385040596,-500.0,0.00029899,2]
[312872347,1706385040606,-500.0,0.00029899,2]
[312872349,1706385040615,-500.0,0.00029899,2]
[312872351,1706385040624,-500.0,0.00029899,2]
[312872353,1706385040633,-500.0,0.00029899,2]
[312872355,1706385040642,-500.0,0.00029899,2]
[312872359,1706385040653,-500.0,0.00029899,2]
[312872361,1706385040662,-500.0,0.00029899,2]
[312872363,1706385040671,-500.0,0.00029899,2]
[312872365,1706385040680,-500.0,0.00029899,2]
[312872367,1706385040688,-500.0,0.00029899,2]
[312872369,1706385040698,-500.0,0.00029899,2]
[312872371,1706385040707,-500.0,0.00029899,2]
[312872373,1706385040716,-500.0,0.00029899,2]
[312872375,1706385040725,-500.0,0.00029899,2]
[312872377,1706385040734,-500.0,0.00029899,2]
[312872379,1706385040744,-500.0,0.00029899,2]
[312872381,1706385040754,-500.0,0.00029899,2]
[312872383,1706385040763,-500.0,0.00029899,2]
[312872385,1706385040772,-500.0,0.00029899,2]
[312872387,1706385040781,-500.0,0.00029899,2]
[312872389,1706385040790,-500.0,0.00029899,2]
[312872391,1706385040799,-500.0,0.00029899,2]
[312872393,1706385040809,-500.0,0.00029899,2]
[312872395,1706385040817,-500.0,0.00029899,2]
[312872397,1706385040826,-500.0,0.00029899,2]
[312872399,1706385040835,-500.0,0.00029899,2]
[312872401,1706385040844,-500.0,0.00029899,2]
[312872403,1706385040854,-500.0,0.00029899,2]
[312872405,1706385040863,-500.0,0.00029899,2]
[312872407,1706385040872,-500.0,0.00029899,2]
[312872409,1706385040881,-500.0,0.00029899,2]
[312872411,1706385040889,-500.0,0.00029899,2]
[312872413,1706385040898,-500.0,0.00029899,2]
[312872414,1706385040907,-500.0,0.00029899,2]
[312872416,1706385040916,-500.0,0.00029899,2]
[312872418,1706385040925,-500.0,0.00029899,2]
[312872420,1706385040934,-500.0,0.00029899,2]
[312872423,1706385040944,-500.0,0.00029899,2]
[312872425,1706385040953,-500.0,0.00029899,2]
[312872427,1706385040962,-500.0,0.00029899,2]
[312872429,1706385040971,-500.0,0.00029899,2]
[312872431,1706385040980,-320.55288916,0.00029899,2]
[312872432,1706385040989,-500.0,0.00029899,2]
[312872435,1706385040998,-500.0,0.00029899,2]
[312872437,1706385041007,-500.0,0.00029899,2]
[312872439,1706385041016,-500.0,0.00029899,2]
[312872440,1706385041025,-500.0,0.00029899,2]
[312872442,1706385041034,-500.0,0.00029899,2]
[312872444,1706385041043,-500.0,0.00029899,2]
[312872446,1706385041052,-500.0,0.00029899,2]
[312872448,1706385041061,-500.0,0.00029899,2]
[312872450,1706385041070,-500.0,0.00029899,2]
[312872452,1706385041079,-154.0,0.00029899,2]
[312872455,1706385041089,-500.0,0.00029899,2]
[312872457,1706385041098,-499.99999999,0.00029899,2]
[312872459,1706385041107,-500.0,0.00029899,2]
[312872461,1706385041116,-500.0,0.00029899,2]
[312872463,1706385041125,-500.0,0.00029899,2]
[312872465,1706385041134,-500.0,0.00029899,2]
[312872467,1706385041143,-609.838,0.00029899,2]
[312872469,1706385041152,-500.0,0.00029899,2]
[312872471,1706385041161,-500.0,0.00029899,2]
[312872473,1706385041169,-500.0,0.00029899,2]
[312872475,1706385041178,-500.0,0.00029899,2]
[312872477,1706385041187,-459.90360748,0.00029899,2]
[312872479,1706385041196,-500.0,0.00029899,2]
[312872480,1706385041205,-500.0,0.00029899,2]
[312872481,1706385041214,-443.57107396,0.00029899,2]
[312872482,1706385041223,-190.08273826,0.000299,3]
[312872483,1706385041232,-276000.0,0.000299,2]
[312872484,1706385041241,-151.0,0.000299,2]
[312872485,1706385041250,-151.0,0.000299,2]
[312872486,1706385041259,-377.073033,0.000299,2]
[312872487,1706385041268,-377.073033,0.000299,2]
[312872488,1706385041278,-154.69686,0.000299,2]
[312872489,1706385041287,-151.754742,0.000299,2]
[312872490,1706385041296,-3299.244525,0.000299,2]
[312872491,1706385041305,-3299.244525,0.000299,2]
[312872493,1706385041315,-6615.424393,0.000299,2]
[312872495,1706385041323,-6615.424393,0.000299,2]
[312872497,1706385041332,-151.0,0.000299,2]
[312872499,1706385041342,-377.073033,0.00029997,2]
[312872501,1706385041352,-377.073033,0.00029997,2]
[312872503,1706385041361,-3299.244525,0.00029997,2]
[312872505,1706385041370,-3299.244525,0.00029997,2]
[312872507,1706385041379,-151.0,0.00029999,2]
[312872509,1706385041388,-151.0,0.00029999,2]
[312872511,1706385041397,-151.0,0.00029999,2]
[312872513,1706385041406,-151.0,0.00029999,2]
[312872515,1706385041415,-62043.92850848,0.0003,4]
[312872517,1706385041424,-4292.55674097,0.0003,4]
[312872518,1706385041433,-155.01860223,0.0003,4]
[312872521,1706385041443,-715.13123432,0.0003,4]
[312872523,1706385041452,-165.81521305,0.0003,4]
[312872525,1706385041461,-2079.53980355,0.0003,2]
[312872527,1706385041470,-309.87922767,0.0003,2]
[312872529,1706385041479,-408.1017874,0.0003,4]
[312872531,1706385041488,-4772.09048546,0.0003,2]
[312872533,1706385041497,-1027.50463707,0.0003,2]
[312872534,1706385041506,-244.44828906,0.0003,4]
[312872536,1706385041515,-195.57103754,0.0003,2]
[312872538,1706385041524,-155.01860223,0.0003,4]
[312872540,1706385041533,-689.09430435,0.0003,4]
[312872543,1706385041543,-151.0,0.0003,2]
[312872544,1706385041552,-151.0,0.0003,2]
[312872546,1706385041561,-151.0,0.0003,2]
[312872549,1706385041572,-151.0,0.0003,2]
[312872550,1706385041583,-377.073033,0.0003,2]
[312872553,1706385041593,-377.073033,0.0003,2]
[312872554,1706385041602,-213.0,0.0003,2]
[312872557,1706385041611,-3299.244525,0.0003,2]
[312872558,1706385041621,-3299.244525,0.0003,2]
[312872560,1706385041630,-6615.424393,0.0003,2]
[312872562,1706385041639,-6615.424393,0.0003,2]
[312872564,1706385041648,-151.0,0.0003,2]
[312872566,1706385041658,-620.03186713,0.00030001,2]
[312872569,1706385041669,-620.63726295,0.00030076,2]
[312872571,1706385041678,-153.0,0.00030137,2]
[312872572,1706385041687,-153.0,0.00030137,2]
[312872575,1706385041696,-199.397808,0.00030137,2]
[312872576,1706385041705,-153.0,0.00030137,2]
[312872578,1706385041714,-153.0,0.00030137,2]
[312872580,1706385041724,-153.0,0.00030137,2]
[312872583,1706385041733,-153.0,0.00030137,2]
[312872592,1706385041808,-306.0,0.00030137,2]
[312872594,1706385041818,-153.2749493,0.00030137,2]
[312872596,1706385041827,-153.0,0.00030137,2]
[312872598,1706385041835,-153.2223878,0.00030137,2]
[312872600,1706385041844,-153.0,0.00030137,2]
[312872602,1706385041853,-199.4415769,0.00030137,2]
[312872604,1706385041862,-306.0,0.00030137,2]
[312872606,1706385041871,-153.0,0.00030137,2]
[312872608,1706385041879,-153.0,0.00030137,2]
[312872610,1706385041888,-199.4415769,0.00030137,2]
[312872612,1706385041897,-153.0,0.00030137,2]
[312872614,1706385041906,-154.5089909,0.00030137,2]
[312872616,1706385041916,-199.4415769,0.00030137,2]
[312872618,1706385041925,-199.4415769,0.00030137,2]
[312872620,1706385041934,-199.4415769,0.00030137,2]
[312872622,1706385041943,-199.4415769,0.00030137,2]
[312872624,1706385041952,-153.0,0.00030137,2]
[312872626,1706385041961,-153.0,0.00030137,2]
[312872628,1706385041970,-153.0,0.00030137,2]
[312872630,1706385041979,-153.0,0.00030137,2]
[312872631,1706385041989,-153.0,0.00030137,2]
[312872633,1706385041998,-153.0,0.00030137,2]
[312872635,1706385042007,-153.0,0.00030137,2]
[312872638,1706385042016,-153.0,0.00030137,2]
[312872640,1706385042025,-199.4415769,0.00030137,2]
[312872642,1706385042034,-153.0,0.00030137,2]
[312872644,1706385042043,-153.0,0.00030137,2]
[312872646,1706385042052,-199.4415769,0.00030137,2]
[312872648,1706385042061,-199.4415769,0.00030137,2]
[312872650,1706385042070,-158.374567,0.00030137,2]
[312872652,1706385042079,-377.791648,0.00030137,2]
[312872654,1706385042088,-155.0,0.00030137,2]
[312872656,1706385042098,-50000.0,0.0003019,4]
[312872658,1706385042107,-151.0,0.0003019,2]
[312872660,1706385042116,-151.0,0.0003019,2]
[312872662,1706385042124,-151.0,0.0003019,2]
[312872664,1706385042133,-151.0,0.0003019,2]
[312872666,1706385042141,-377.073033,0.0003019,2]
[312872668,1706385042150,-377.073033,0.0003019,2]
[312872670,1706385042160,-3299.244525,0.0003019,2]
[312872672,1706385042169,-3299.244525,0.0003019,2]
[312872674,1706385042178,-6615.424393,0.0003019,2]
[312872676,1706385042187,-6615.424393,0.0003019,2]
[312872678,1706385042196,-151.0,0.0003019,2]
[312872680,1706385042204,-12463.65465374,0.00030193,4]
[312872682,1706385042220,-10202.84952288,0.00030193,4]
[312872846,1706385043559,-77.24445099,0.00030193,4]
[312872853,1706385043618,-9912.54770082,0.00030193,4]
[312872909,1706385046676,-196.7000636,0.00029315,2]
[312872913,1706385046686,-817.70456125,0.00030192,4]
[312872916,1706385046696,-1598.29853298,0.00030193,4]
[312872993,1706385050089,10000.0,0.0003,30]
[312872994,1706385062559,1106.892069,0.00031,120]
[312872995,1706385075953,3641.80281663,0.0003019,120]
[312872996,1706385091931,759.59570777,0.0003018,120]
[312872998,1706385104405,385.72665281,0.00030176,30]
[312873014,1706385250237,5069.45223283,0.00025,10]
[312873015,1706385250514,659.53782659,0.000125,2]
[312873016,1706385302666,155.01860223,0.00016308,3]
[312873017,1706385302889,165.81521305,0.000125,2]
[312873018,1706385310215,715.13123432,0.000125,2]
[312873026,1706385607658,155.01860223,0.00016295,3]
[312873030,1706385684204,155.01860223,0.00016291,3]
[312873031,1706385700203,155.01860223,0.00016689,3]
[312873032,1706385714197,155.01860223,0.00016689,3]
[312873034,1706385736211,155.01860223,0.00016689,3]
[312873035,1706385756214,155.01860223,0.00016689,3]
[312873036,1706385770210,155.01860223,0.00016689,3]
[312873038,1706385788220,155.01860223,0.00016689,3]
[312873040,1706385804212,155.01860223,0.00016689,3]
[312873043,1706385820223,155.01860223,0.00016689,3]
[312873047,1706385836226,155.01860223,0.00016689,3]
[312873049,1706385856221,155.01860223,0.00016689,3]
[312873053,1706385874229,155.01860223,0.00016689,3]
[312873056,1706385890231,155.02015262,0.00016689,3]
[312873058,1706385906240,155.02015262,0.00016689,3]
[312873059,1706385922241,155.02015262,0.00016689,3]
[312873060,1706385946249,155.02015262,0.00016689,3]
[312873061,1706385966253,155.02015262,0.00016689,3]
[312873062,1706385986250,155.02015262,0.00016689,3]
[312873068,1706386006254,155.02015262,0.00016689,3]
[312873114,1706386084770,155.02015262,0.00016273,3]
[312873117,1706386098760,155.02015262,0.00016644,3]
[312873137,1706386118769,155.02015262,0.00016644,3]
[312873149,1706386140775,155.02015262,0.00016644,3]
[312873162,1706386164786,155.02015262,0.00016644,3]
[312873171,1706386184787,155.02015262,0.00016644,3]
[312873183,1706386204817,155.02015262,0.00016644,3]
[312873196,1706386224784,155.02015262,0.00016644,3]
[312873307,1706386237866,-995.27318575,0.00016173,2]
[312873309,1706386237876,-245.57627736,0.00016174,2]
[312873311,1706386237886,-7818.02905683,0.00016264,2]
[312873313,1706386237896,-688.5172537,0.00016265,2]
[312873315,1706386237905,-455.45374924,0.00016266,2]
[312873318,1706386237917,-839.22552918,0.00016266,2]
[312873320,1706386237926,-1586.53233271,0.00016267,2]
[312873322,1706386237938,-2335.06350276,0.00016267,2]
[312873324,1706386237947,-639.10324176,0.00016267,2]
[312873326,1706386237956,-1764.73099551,0.0001631,2]
[312873328,1706386237965,-262.54949426,0.00018493,2]
[312873329,1706386237973,-5347.42831359,0.00018495,2]
[312873616,1706386240849,-6041.78031691,0.00018495,2]
[312873619,1706386240861,-8183.2365986,0.00018495,2]
[312873622,1706386240870,-523.34168566,0.00018544,2]
[312873624,1706386240879,-213.595546,0.00018544,2]
[312873626,1706386240889,-155.06158408,0.00018544,2]
[312873628,1706386240898,-295.12770733,0.00018545,2]
[312873630,1706386240908,-1583.7528565,0.00019,2]
[312873632,1706386240917,-167.005809,0.00019178,2]
[312873634,1706386240926,-171.9191,0.00019178,2]
[312873636,1706386240935,-155.01860223,0.0002,2]
[312873638,1706386240944,-2009.31889645,0.0002,2]
[312873640,1706386240953,-155.01860223,0.0002,2]
[312873642,1706386240962,-155.01860223,0.0002,2]
[312873654,1706386241062,-679.3029243,0.0002,2]
[312873656,1706386241073,-244.16390159,0.0002,2]
[312873658,1706386241083,-1199.09633829,0.0002,2]
[312873660,1706386241092,-151.9547315,0.0002,2]
[312873662,1706386241101,-22576.31,0.0002097,3]
[312873664,1706386241110,-521.0,0.00020988,2]
[312873665,1706386241120,-309.87767732,0.00020989,2]
[312873667,1706386241129,-4835.25788522,0.0002099,3]
[312873940,1706386980388,10000.0,0.0003,30]
[312873941,1706387000545,10000.0,0.0003,30]
[312873956,1706387431854,-179.04837668,0.00017875,2]
[312873958,1706387431863,-1697.2441966,0.00017876,2]
[312873959,1706387431873,-38.38904301,0.00017877,2]
[312873961,1706387431887,-472.87139612,0.00017877,2]
[312873991,1706387437914,-1069.41160853,0.00017877,2]
[312873993,1706387437925,-7966.81883748,0.00017878,2]
[312873996,1706387437935,-688.5172537,0.00017878,2]
[312873997,1706387437945,-2040.63936826,0.00017879,2]
[312873999,1706387437954,-639.10324176,0.00017879,2]
[312874002,1706387437964,-1133.40969027,0.00017898,2]
[312874077,1706387442091,-155.01860223,0.00017874,3]
[312874078,1706387442100,-347.45025274,0.00017898,2]
[312874079,1706387442110,-171.07208762,0.00018259,2]
[312874080,1706387442119,-555.82631352,0.0001826,2]
[312874081,1706387442128,-852.0595102,0.00018261,2]
[312874082,1706387442140,-11939.87615468,0.00018261,2]
[312874108,1706387442981,-493.17353471,0.00018261,2]
[312874138,1706388019002,306.412039,0.00016257,2]
[312874139,1706388043571,151.53182002,0.00016176,2]
[312874410,1706388052592,2042.05614098,0.00016257,2]
[312874858,1706388092529,155.01860223,0.00016253,3]
[312874859,1706388106544,155.02015262,0.00014629,2]
[312874860,1706388127028,155.02015262,0.00014624,2]
[312874862,1706388143033,155.02015262,0.00014624,2]
[312874863,1706388159046,155.02015262,0.00014536,2]
[312874864,1706388183542,155.02015262,0.00014536,2]
[312874877,1706388199536,155.02015262,0.00014531,2]
[312874879,1706388214199,-1254.50882971,0.00016145,2]
[312874880,1706388214226,-688.5172537,0.00016145,2]
[312874881,1706388214254,-155.02015262,0.00016146,2]
[312874882,1706388214282,-262.54949426,0.00016146,2]
[312874883,1706388214311,-527.10191996,0.00016147,2]
[312874884,1706388214341,-7966.81883748,0.00016147,2]
[312874885,1706388214369,-3140.48351227,0.00016147,2]
[312874886,1706388214671,381.01371434,0.00016046,2]
[312874887,1706388219746,155.02015262,0.00016146,3]
[312874888,1706388239541,155.02015262,0.0001453,2]
[312874889,1706388245647,197.83181426,0.00016045,2]
[312874890,1706388258057,155.02015262,0.0001453,2]
[312874891,1706388280046,155.01860223,0.0001453,2]
[312874892,1706388304548,155.01860223,0.00014527,2]
[312874893,1706388322553,155.01860223,0.00014526,2]
[312874894,1706388340552,155.01860223,0.00014526,2]
[312874895,1706388358591,155.01860223,0.00014525,2]
[312874896,1706388375060,155.01860223,0.00014524,2]
[312874897,1706388393145,155.01860223,0.00014522,2]
[312874898,1706388415186,155.02015262,0.00014521,2]
[312874900,1706388431565,155.02015262,0.00014519,2]
[312874902,1706388451564,155.02015262,0.00014519,2]
[312874905,1706388562182,155.75566436,0.00016032,2]
[312874935,1706388633476,-155.02015262,0.0001612,2]
[312874936,1706388633486,-3921.59583547,0.0001612,2]
[312874938,1706388633495,-716.21685387,0.00016121,2]
[312874940,1706388633506,-788.92948271,0.00016121,2]
[312874942,1706388633518,-18210.59804666,0.00016121,2]
[312874944,1706388633527,-15633.02905683,0.00016121,2]
[312874946,1706388633536,-1697.2441966,0.00016121,2]
[312874948,1706388633545,-562.04995501,0.00016121,2]
[312874950,1706388633554,-639.10324176,0.00016121,2]
[312874952,1706388633563,-175.34431987,0.00016122,2]
[312874954,1706388633572,-20915.89787581,0.00016122,2]
[312874956,1706388633581,-617.20703081,0.00016122,2]
[312874958,1706388633590,-995.27318575,0.00016122,2]
[312874960,1706388633599,-81256.3314766,0.00016123,2]
[312874962,1706388633608,-494.75816422,0.00016132,2]
[312874964,1706388633618,-261.2804971,0.00016144,2]
[312874966,1706388633627,-588.79527568,0.00016144,2]
[312874968,1706388633636,-4914.61555639,0.00016145,2]
[312874970,1706388633646,-302.17444234,0.00016145,2]
[312874972,1706388633655,-527.9607821,0.00016145,2]
[312874974,1706388633664,-619.5151035,0.00016145,2]
[312874976,1706388633673,-447.33524631,0.00016145,2]
[312874978,1706388633682,-157.57939269,0.00016145,2]